fUSD/lending_fUSD_20260319
["ID","MTS","AMOUNT","RATE_DAILY","PERIOD"]
[408572051,1773899448850,-504.0,0.0001421,2]
[408572052,1773899448859,-8882.6885148,0.00014236,2]
[408572053,1773899448868,-500.0,0.00014236,2]
[408572054,1773899448877,-391.19164398,0.00014236,2]
[408572055,1773899448887,-1328.27659266,0.00014236,2]
[408572056,1773899448896,-500.0,0.00014236,2]
[408572057,1773899448906,-500.0,0.00014236,2]
[408572058,1773899448915,-250.0,0.00014236,2]
[408572059,1773899448925,-500.0,0.00014236,2]
[408572060,1773899448935,-250.0,0.00014236,2]
[408572061,1773899448944,-500.0,0.00014236,2]
[408572062,1773899448954,-250.0,0.00014236,2]
[408572063,1773899448963,-500.0,0.00014236,2]
[408572064,1773899448973,-500.0,0.00014236,2]
[408572065,1773899448982,-500.0,0.00014236,2]
[408572066,1773899448992,-250.0,0.00014236,2]
[408572067,1773899449002,-203.45251981,0.00014236,2]
[408572068,1773899449013,-250.0,0.00014236,2]
[408572069,1773899449024,-500.0,0.00014236,2]
[408572070,1773899449034,-250.0,0.00014236,2]
[408572071,1773899449045,-250.0,0.00014236,2]
[408572072,1773899449057,-282.59450799,0.00014236,2]
[408572073,1773899449067,-500.0,0.00014236,2]
[408572074,1773899449077,-500.0,0.00014236,2]
[408572075,1773899449086,-181.08010149,0.00014236,2]
[408572076,1773899449096,-250.0,0.00014236,2]
[408572077,1773899449107,-500.0,0.00014236,2]
[408572078,1773899449118,-250.0,0.00014236,2]
[408572079,1773899449128,-500.0,0.00014236,2]
[408572080,1773899449138,-250.0,0.00014236,2]
[408572081,1773899449149,-500.0,0.00014236,2]
[408572082,1773899449159,-250.0,0.00014236,2]
[408572083,1773899449169,-250.0,0.00014236,2]
[408572084,1773899449178,-250.0,0.00014236,2]
[408572085,1773899449190,-250.0,0.00014236,2]
[408572086,1773899449199,-250.0,0.00014236,2]
[408572087,1773899449208,-151.0,0.00014236,2]
[408572088,1773899449217,-250.0,0.00014236,2]
[408572089,1773899449226,-295.82407261,0.00014236,2]
[408572090,1773899449236,-669.13395939,0.00014236,2]
[408572091,1773899449245,-261.0,0.00014239,3]
[408572092,1773899449255,-811.08,0.0001424,2]
[408572093,1773899449265,-625.21955224,0.00014247,2]
[408572094,1773899449275,-1000.0,0.00014247,2]
[408572095,1773899449284,-282.85176182,0.00014247,2]
[408572096,1773899449293,-857.17487336,0.00014247,2]
[408572097,1773899449302,-1000.0,0.00014247,2]
[408572098,1773899449311,-1000.0,0.00014247,2]
[408572099,1773899449320,-1000.0,0.00014247,2]
[408572100,1773899449329,-1000.0,0.00014247,2]
[408572101,1773899449338,-1000.0,0.00014247,2]
[408572102,1773899449347,-1000.0,0.00014247,2]
[408572103,1773899449357,-1000.0,0.00014247,2]
[408572104,1773899449367,-1000.0,0.00014247,2]
[408572105,1773899449377,-1000.0,0.00014247,2]
[408572106,1773899449386,-1000.0,0.00014247,2]
[408572107,1773899449397,-914.97243229,0.00014247,2]
[408572108,1773899449408,-1000.0,0.00014247,2]
[408572109,1773899449419,-1000.0,0.00014247,2]
[408572110,1773899449428,-1000.0,0.00014247,2]
[408572111,1773899449438,-1000.0,0.00014247,2]
[408572112,1773899449450,-1000.0,0.00014247,2]
[408572113,1773899449459,-1000.0,0.00014247,2]
[408572114,1773899449468,-1000.0,0.00014247,2]
[408572115,1773899449477,-1000.0,0.00014247,2]
[408572116,1773899449487,-1000.0,0.00014247,2]
[408572117,1773899449496,-1000.0,0.00014247,2]
[408572118,1773899449505,-1000.0,0.00014247,2]
[408572119,1773899449514,-1000.0,0.00014247,2]
[408572120,1773899449524,-1000.0,0.00014247,2]
[408572121,1773899449533,-1000.0,0.00014247,2]
[408572122,1773899449542,-389.68962136,0.00014247,2]
[408572123,1773899449555,-1000.0,0.00014247,2]
[408572124,1773899449564,-1000.0,0.00014247,2]
[408572125,1773899449573,-1000.0,0.00014247,2]
[408572126,1773899449582,-412.99392051,0.00014247,2]
[408572127,1773899449593,-226.28741406,0.00014247,2]
[408572128,1773899449603,-1000.0,0.00014247,2]
[408572129,1773899449612,-1000.0,0.00014247,2]
[408572130,1773899449623,-1000.0,0.00014247,2]
[408572131,1773899449632,-1000.0,0.00014247,2]
[408572132,1773899449641,-1000.0,0.00014247,2]
[408572133,1773899449651,-1000.0,0.00014247,2]
[408572134,1773899449660,-1000.0,0.00014247,2]
[408572135,1773899449669,-1000.0,0.00014247,2]
[408572136,1773899449678,-2199.815114,0.00014247,2]
[408572137,1773899449687,-2199.815114,0.00014247,2]
[408572138,1773899449696,-151.0,0.00014247,2]
[408572139,1773899449706,-2199.815114,0.00014247,2]
[408572140,1773899449715,-151.0,0.00014247,2]
[408572141,1773899449724,-151.0,0.00014247,2]
[408572142,1773899449734,-2199.815114,0.00014247,2]
[408572143,1773899449743,-151.0,0.00014247,2]
[408572144,1773899449752,-151.0,0.00014247,2]
[408572145,1773899449761,-151.0,0.00014247,2]
[408572146,1773899449770,-500.0,0.00014247,2]
[408572147,1773899449779,-500.0,0.00014247,2]
[408572148,1773899449788,-500.0,0.00014247,2]
[408572149,1773899449797,-151.0,0.00014247,2]
[408572150,1773899449807,-151.0,0.00014247,2]
[408572151,1773899449816,-500.0,0.00014247,2]
[408572152,1773899449825,-163.401354,0.00014247,2]
[408572153,1773899449834,-151.0,0.00014247,2]
[408572155,1773899449843,-151.0,0.00014247,2]
[408572156,1773899449852,-185.678206,0.00014247,2]
[408572157,1773899449862,-185.678206,0.00014247,2]
[408572158,1773899449870,-185.678206,0.00014247,2]
[408572159,1773899449880,-185.678206,0.00014247,2]
[408572160,1773899449889,-879.01,0.00014247,2]
[408572161,1773899449899,-591.831781,0.00014247,2]
[408572162,1773899449908,-178.05707,0.00014247,2]
[408572163,1773899449918,-591.831781,0.00014247,2]
[408572164,1773899449927,-151.0,0.00014247,2]
[408572165,1773899449937,-178.05707,0.00014247,2]
[408572166,1773899449946,-591.831781,0.00014247,2]
[408572167,1773899449955,-178.05707,0.00014247,2]
[408572168,1773899449964,-3847.171813,0.00014247,2]
[408572169,1773899449973,-591.831781,0.00014247,2]
[408572170,1773899449982,-3847.171813,0.00014247,2]
[408572171,1773899449991,-178.05707,0.00014247,2]
[408572172,1773899450001,-541.902195,0.00014247,2]
[408572173,1773899450010,-186.812431,0.00014247,2]
[408572174,1773899450019,-3847.171813,0.00014247,2]
[408572176,1773899450028,-541.902195,0.00014247,2]
[408572177,1773899450037,-151.0,0.00014247,2]
[408572178,1773899450046,-186.812431,0.00014247,2]
[408572179,1773899450055,-3847.171813,0.00014247,2]
[408572180,1773899450064,-541.902195,0.00014247,2]
[408572181,1773899450073,-151.0,0.00014247,2]
[408572182,1773899450082,-186.812431,0.00014247,2]
[408572183,1773899450094,-541.902195,0.00014247,2]
[408572184,1773899450103,-151.0,0.00014247,2]
[408572185,1773899450112,-186.812431,0.00014247,2]
[408572186,1773899450122,-300.4,0.00014248,2]
[408572187,1773899450131,-207.9004718,0.00014284,2]
[408572188,1773899450141,-9211.34798985,0.00014291,2]
[408572189,1773899450151,-500.0,0.00014291,2]
[408572190,1773899450161,-151.0,0.00014291,2]
[408572191,1773899450170,-1951.875944,0.00014291,2]
[408572192,1773899450180,-151.0,0.00014291,2]
[408572194,1773899450190,-1951.875944,0.00014291,2]
[408572195,1773899450200,-241.616519,0.00014291,2]
[408572196,1773899450210,-1951.875944,0.00014291,2]
[408572197,1773899450220,-319.911065,0.00014291,2]
[408572198,1773899450229,-1951.875944,0.00014291,2]
[408572199,1773899450238,-319.911065,0.00014291,2]
[408572200,1773899450248,-319.911065,0.00014291,2]
[408572201,1773899450257,-319.911065,0.00014291,2]
[408572202,1773899450266,-277.136968,0.00014291,2]
[408572203,1773899450276,-277.136968,0.00014291,2]
[408572204,1773899450286,-151.0,0.00014291,2]
[408572205,1773899450295,-277.136968,0.00014291,2]
[408572206,1773899450305,-351.175175,0.00014291,2]
[408572208,1773899450314,-151.0,0.00014291,2]
[408572209,1773899450323,-277.136968,0.00014291,2]
[408572210,1773899450332,-351.175175,0.00014291,2]
[408572212,1773899450342,-492.914894,0.00014291,2]
[408572213,1773899450352,-351.175175,0.00014291,2]
[408572214,1773899450361,-492.914894,0.00014291,2]
[408572215,1773899450373,-351.175175,0.00014291,2]
[408572216,1773899450383,-492.914894,0.00014291,2]
[408572217,1773899450392,-151.0,0.00014291,2]
[408572218,1773899450402,-492.914894,0.00014291,2]
[408572219,1773899450413,-2289.291087,0.00014291,2]
[408572220,1773899450423,-151.0,0.00014291,2]
[408572221,1773899450434,-151.0,0.00014291,2]
[408572222,1773899450444,-276.134429,0.00014291,2]
[408572223,1773899450456,-603.024672,0.00014291,2]
[408572224,1773899450466,-151.0,0.00014291,2]
[408572225,1773899450475,-2289.291087,0.00014291,2]
[408572226,1773899450484,-276.134429,0.00014291,2]
[408572227,1773899450493,-770.064578,0.00014291,2]
[408572228,1773899450502,-603.024672,0.00014291,2]
[408572229,1773899450511,-151.0,0.00014291,2]
[408572230,1773899450521,-2289.291087,0.00014291,2]
[408572231,1773899450529,-276.134429,0.00014291,2]
[408572232,1773899450539,-770.064578,0.00014291,2]
[408572233,1773899450551,-603.024672,0.00014291,2]
[408572234,1773899450560,-276.134429,0.00014291,2]
[408572235,1773899450569,-2289.291087,0.00014291,2]
[408572236,1773899450578,-770.064578,0.00014291,2]
[408572237,1773899450588,-603.024672,0.00014291,2]
[408572238,1773899450598,-770.064578,0.00014291,2]
[408572239,1773899450608,-151.0,0.00014291,2]
[408572240,1773899450617,-151.0,0.00014291,2]
[408572241,1773899450628,-151.0,0.00014291,2]
[408572242,1773899450638,-151.0,0.00014291,2]
[408572243,1773899450647,-151.0,0.00014291,2]
[408572244,1773899450656,-151.0,0.00014291,2]
[408572245,1773899450666,-151.0,0.00014291,2]
[408572246,1773899450675,-606.713391,0.00014291,2]
[408572247,1773899450684,-222.271664,0.00014291,2]
[408572248,1773899450693,-3178.349364,0.00014291,2]
[408572249,1773899450703,-151.0,0.00014291,2]
[408572250,1773899450713,-151.0,0.00014291,2]
[408572251,1773899450724,-222.271664,0.00014291,2]
[408572252,1773899450734,-3178.349364,0.00014291,2]
[408572253,1773899450745,-1291.432253,0.00014291,2]
[408572254,1773899450757,-606.713391,0.00014291,2]
[408572255,1773899450766,-151.0,0.00014291,2]
[408572256,1773899450777,-3178.349364,0.00014291,2]
[408572257,1773899450787,-1291.432253,0.00014291,2]
[408572258,1773899450798,-222.271664,0.00014291,2]
[408572259,1773899450808,-606.713391,0.00014291,2]
[408572260,1773899450818,-3178.349364,0.00014291,2]
[408572261,1773899450829,-1291.432253,0.00014291,2]
[408572262,1773899450839,-222.271664,0.00014291,2]
[408572263,1773899450850,-606.713391,0.00014291,2]
[408572264,1773899450860,-1291.432253,0.00014291,2]
[408572265,1773899450870,-422.278006,0.00014291,2]
[408572266,1773899450879,-422.278006,0.00014291,2]
[408572267,1773899450889,-422.278006,0.00014291,2]
[408572268,1773899450899,-151.0,0.00014291,2]
[408572269,1773899450909,-151.0,0.00014291,2]
[408572270,1773899450918,-422.278006,0.00014291,2]
[408572271,1773899450927,-188.860457,0.00014291,2]
[408572272,1773899450936,-1349.424833,0.00014291,2]
[408572273,1773899450946,-1349.424833,0.00014291,2]
[408572274,1773899450955,-1349.424833,0.00014291,2]
[408572275,1773899450965,-1349.424833,0.00014291,2]
[408572276,1773899450975,-151.0,0.00014291,2]
[408572277,1773899450986,-151.0,0.00014291,2]
[408572278,1773899450995,-280.24666,0.00014291,2]
[408572279,1773899451006,-280.24666,0.00014291,2]
[408572280,1773899451016,-280.24666,0.00014291,2]
[408572281,1773899451026,-280.24666,0.00014291,2]
[408572282,1773899451037,-3241.48,0.00014292,2]
[408572283,1773899451047,-20541.93936785,0.00014308,2]
[408572284,1773899451058,-10978.35188603,0.00014308,2]
[408572285,1773899451066,-500.0,0.00014316,2]
[408572286,1773899451076,-3802.24611417,0.00014321,2]
[408572287,1773899451086,-959.40703358,0.00014333,2]
[408572288,1773899451095,-8281.75439405,0.00014346,2]
[408572289,1773899451105,-500.0,0.00014346,2]
[408572290,1773899451114,-151.0,0.00014346,2]
[408572291,1773899451187,-3512.0,0.00014348,2]
[408572292,1773899451198,-1044.0,0.00014348,2]
[408572293,1773899451209,-1350.033,0.00014348,2]
[408572294,1773899451220,-627.184,0.00014348,2]
[408572295,1773899451229,-1261.0,0.00014348,2]
[408572296,1773899451238,-150.369,0.00014348,2]
[408572297,1773899451248,-216.0,0.00014348,2]
[408572298,1773899451258,-222.205,0.00014348,2]
[408572299,1773899451268,-150.0,0.00014348,2]
[408572300,1773899451277,-414.915,0.00014348,2]
[408572301,1773899451286,-3758.0,0.00014348,2]
[408572302,1773899451294,-500.0,0.00014383,2]
[408572303,1773899451303,-3134.15,0.00014384,2]
[408572304,1773899451312,-2138.057356,0.00014384,2]
[408572305,1773899451321,-520.503441,0.00014384,2]
[408572306,1773899451330,-2138.057356,0.00014384,2]
[408572307,1773899451339,-388.876166,0.00014384,2]
[408572308,1773899451348,-845.938546,0.00014384,2]
[408572309,1773899451358,-520.503441,0.00014384,2]
[408572310,1773899451367,-388.876166,0.00014384,2]
[408572311,1773899451376,-845.938546,0.00014384,2]
[408572312,1773899451385,-151.0,0.00014384,2]
[408572313,1773899451393,-2138.057356,0.00014384,2]
[408572314,1773899451402,-520.503441,0.00014384,2]
[408572315,1773899451412,-388.876166,0.00014384,2]
[408572316,1773899451422,-151.0,0.00014384,2]
[408572317,1773899451431,-845.938546,0.00014384,2]
[408572318,1773899451440,-2138.057356,0.00014384,2]
[408572319,1773899451449,-151.0,0.00014384,2]
[408572320,1773899451459,-520.503441,0.00014384,2]
[408572321,1773899451467,-388.876166,0.00014384,2]
[408572322,1773899451476,-845.938546,0.00014384,2]
[408572323,1773899451485,-151.0,0.00014384,2]
[408572324,1773899451494,-1697.722132,0.00014384,2]
[408572325,1773899451503,-177.962446,0.00014384,2]
[408572326,1773899451513,-151.0,0.00014384,2]
[408572327,1773899451522,-151.0,0.00014384,2]
[408572328,1773899451532,-1697.722132,0.00014384,2]
[408572329,1773899451541,-177.962446,0.00014384,2]
[408572330,1773899451552,-544.326923,0.00014384,2]
[408572331,1773899451562,-151.0,0.00014384,2]
[408572332,1773899451571,-151.0,0.00014384,2]
[408572333,1773899451580,-1697.722132,0.00014384,2]
[408572334,1773899451591,-177.962446,0.00014384,2]
[408572335,1773899451600,-491.568807,0.00014384,2]
[408572336,1773899451609,-544.326923,0.00014384,2]
[408572337,1773899451619,-1697.722132,0.00014384,2]
[408572338,1773899451629,-177.962446,0.00014384,2]
[408572339,1773899451639,-151.0,0.00014384,2]
[408572340,1773899451649,-544.326923,0.00014384,2]
[408572341,1773899451658,-491.568807,0.00014384,2]
[408572342,1773899451667,-151.0,0.00014384,2]
[408572343,1773899451676,-491.568807,0.00014384,2]
[408572344,1773899451685,-544.326923,0.00014384,2]
[408572345,1773899451695,-151.0,0.00014384,2]
[408572346,1773899451704,-151.0,0.00014384,2]
[408572347,1773899451713,-9680.222096,0.00014384,2]
[408572348,1773899451722,-151.0,0.00014384,2]
[408572349,1773899451731,-151.0,0.00014384,2]
[408572350,1773899451740,-9680.222096,0.00014384,2]
[408572351,1773899451749,-151.0,0.00014384,2]
[408572352,1773899451758,-1651.820882,0.00014384,2]
[408572353,1773899451767,-151.0,0.00014384,2]
[408572354,1773899451775,-9680.222096,0.00014384,2]
[408572355,1773899451784,-1651.820882,0.00014384,2]
[408572356,1773899451792,-151.0,0.00014384,2]
[408572357,1773899451801,-151.0,0.00014384,2]
[408572358,1773899451810,-9680.222096,0.00014384,2]
[408572359,1773899451818,-151.0,0.00014384,2]
[408572360,1773899451827,-1651.820882,0.00014384,2]
[408572361,1773899451836,-151.0,0.00014384,2]
[408572362,1773899451845,-151.0,0.00014384,2]
[408572363,1773899451853,-151.0,0.00014384,2]
[408572364,1773899451862,-1651.820882,0.00014384,2]
[408572365,1773899451871,-151.0,0.00014384,2]
[408572366,1773899451879,-2612.845104,0.00014384,2]
[408572367,1773899451888,-151.0,0.00014384,2]
[408572368,1773899451897,-151.0,0.00014384,2]
[408572369,1773899451906,-151.0,0.00014384,2]
[408572370,1773899451916,-151.0,0.00014384,2]
[408572371,1773899451924,-2612.845104,0.00014384,2]
[408572372,1773899451934,-252.461609,0.00014384,2]
[408572373,1773899451943,-2612.845104,0.00014384,2]
[408572374,1773899451952,-213.824497,0.00014384,2]
[408572375,1773899451961,-252.461609,0.00014384,2]
[408572376,1773899451970,-2612.845104,0.00014384,2]
[408572377,1773899451979,-213.824497,0.00014384,2]
[408572378,1773899451988,-252.461609,0.00014384,2]
[408572379,1773899451996,-213.824497,0.00014384,2]
[408572380,1773899452005,-252.461609,0.00014384,2]
[408572381,1773899452015,-766.398952,0.00014384,2]
[408572382,1773899452023,-213.824497,0.00014384,2]
[408572383,1773899452032,-912.434485,0.00014384,2]
[408572384,1773899452041,-151.0,0.00014384,2]
[408572385,1773899452050,-766.398952,0.00014384,2]
[408572386,1773899452059,-912.434485,0.00014384,2]
[408572387,1773899452067,-151.0,0.00014384,2]
[408572388,1773899452077,-151.0,0.00014384,2]
[408572389,1773899452088,-151.0,0.00014384,2]
[408572390,1773899452098,-912.434485,0.00014384,2]
[408572391,1773899452108,-151.0,0.00014384,2]
[408572392,1773899452117,-175.630658,0.00014384,2]
[408572393,1773899452127,-151.0,0.00014384,2]
[408572394,1773899452136,-912.434485,0.00014384,2]
[408572395,1773899452146,-766.398952,0.00014384,2]
[408572396,1773899452154,-766.398952,0.00014384,2]
[408572397,1773899452163,-151.0,0.00014384,2]
[408572398,1773899452172,-151.0,0.00014384,2]
[408572399,1773899452182,-760.206708,0.00014384,2]
[408572400,1773899452192,-760.206708,0.00014384,2]
[408572401,1773899452201,-760.206708,0.00014384,2]
[408572402,1773899452211,-760.206708,0.00014384,2]
[408572403,1773899452220,-151.0,0.00014384,2]
[408572404,1773899452229,-151.0,0.00014384,2]
[408572405,1773899452238,-151.0,0.00014384,2]
[408572406,1773899452247,-516.167895,0.00014384,2]
[408572407,1773899452255,-516.167895,0.00014384,2]
[408572408,1773899452264,-516.167895,0.00014384,2]
[408572409,1773899452273,-516.167895,0.00014384,2]
[408572410,1773899452283,-1722.0,0.000144,2]
[408572411,1773899452292,-500.0,0.00014401,2]
[408572412,1773899452301,-151.0,0.00014401,2]
[408572413,1773899452310,-2128.9260041,0.00014422,2]
[408572414,1773899452319,-2000.0,0.00014433,2]
[408572415,1773899452328,-3120.0,0.00014452,5]
[408572416,1773899452338,-3623.0,0.00014452,5]
[408572417,1773899452347,-500.0,0.00014456,2]
[408572418,1773899452357,-151.0,0.00014456,2]
[408572419,1773899452366,-166.66,0.00014473,2]
[408572420,1773899452375,-2402.0,0.000145,2]
[408572421,1773899452384,-500.0,0.00014511,2]
[408572422,1773899452393,-151.0,0.00014511,2]
[408572423,1773899452402,-584.234858,0.00014512,7]
[408572424,1773899452411,-299.0,0.00014514,2]
[408572425,1773899452420,-811.09105416,0.00014514,2]
[408572426,1773899452430,-882.52,0.00014521,2]
[408572427,1773899452439,-2000.0,0.00014533,2]
[408572428,1773899452448,-500.0,0.00014566,2]
[408572429,1773899452458,-151.0,0.00014566,2]
[408572430,1773899452467,-500.0,0.00014621,2]
[408572431,1773899452476,-151.0,0.00014621,2]
[408572432,1773899452485,-2000.0,0.00014633,2]
[408572433,1773899452494,-500.0,0.00014676,2]
[408572434,1773899452504,-151.0,0.00014676,2]
[408572435,1773899452513,-152.0,0.000147,3]
[408572436,1773899452523,-1567.0,0.0001472,2]
[408572437,1773899452532,-2014.0,0.0001472,2]
[408572438,1773899452541,-179.0,0.0001472,2]
[408572439,1773899452557,-500.0,0.00014731,2]
[408572440,1773899452566,-183.91624356,0.00014731,2]
[408572441,1773899452576,-2000.0,0.00014733,2]
[408572442,1773899452586,-200.0,0.00014775,2]
[408572443,1773899452596,-200.0,0.00014775,2]
[408572444,1773899452605,-200.0,0.00014775,2]
[408572445,1773899452614,-200.0,0.00014775,2]
[408572446,1773899452624,-200.0,0.00014775,2]
[408572447,1773899452634,-200.0,0.00014775,2]
[408572448,1773899452643,-200.0,0.00014775,2]
[408572449,1773899452653,-200.0,0.00014775,2]
[408572450,1773899452662,-151.0,0.00014775,2]
[408572451,1773899452671,-195.57880179,0.00014784,2]
[408572452,1773899452680,-693.89191589,0.00014784,2]
[408572453,1773899452690,-500.0,0.00014786,2]
[408572454,1773899452699,-151.0,0.00014792,2]
[408572455,1773899452708,-500.0,0.00014794,2]
[408572456,1773899452721,-846.68886321,0.00014795,2]
[408572457,1773899452730,-1500.0,0.00014795,2]
[408572458,1773899452739,-1500.0,0.00014795,2]
[408572459,1773899452749,-1500.0,0.00014795,2]
[408572460,1773899452758,-1500.0,0.00014795,2]
[408572461,1773899452767,-1500.0,0.00014795,2]
[408572462,1773899452776,-1500.0,0.00014795,2]
[408572463,1773899452785,-1005.49650087,0.00014795,2]
[408572464,1773899452795,-1500.0,0.00014795,2]
[408572465,1773899452804,-1500.0,0.00014795,2]
[408572466,1773899452813,-301.7381184,0.00014795,2]
[408572467,1773899452823,-1500.0,0.00014795,2]
[408572468,1773899452832,-1500.0,0.00014795,2]
[408572469,1773899452841,-1500.0,0.00014795,2]
[408572470,1773899452850,-1047.2319377,0.00014795,2]
[408572471,1773899452859,-1500.0,0.00014795,2]
[408572472,1773899452869,-1500.0,0.00014795,2]
[408572473,1773899452878,-1500.0,0.00014795,2]
[408572474,1773899452887,-1500.0,0.00014795,2]
[408572475,1773899452896,-1500.0,0.00014795,2]
[408572476,1773899452906,-1500.0,0.00014795,2]
[408572477,1773899452916,-1220.11454399,0.00014795,2]
[408572478,1773899452925,-1500.0,0.00014795,2]
[408572479,1773899452934,-1500.0,0.00014795,2]
[408572480,1773899452943,-1500.0,0.00014795,2]
[408572481,1773899452953,-1500.0,0.00014795,2]
[408572482,1773899452962,-1500.0,0.00014795,2]
[408572483,1773899452972,-1176.85294544,0.00014795,2]
[408572484,1773899452981,-1500.0,0.00014795,2]
[408572485,1773899452990,-1500.0,0.00014795,2]
[408572486,1773899452999,-1500.0,0.00014795,2]
[408572487,1773899453009,-1500.0,0.00014795,2]
[408572488,1773899453018,-1500.0,0.00014795,2]
[408572489,1773899453027,-1500.0,0.00014795,2]
[408572490,1773899453037,-1500.0,0.00014795,2]
[408572491,1773899453046,-1500.0,0.00014795,2]
[408572492,1773899453055,-151.0,0.00014795,2]
[408572493,1773899453065,-151.0,0.00014795,2]
[408572494,1773899453074,-199.680299,0.00014795,2]
[408572495,1773899453083,-151.0,0.00014795,2]
[408572496,1773899453092,-199.680299,0.00014795,2]
[408572497,1773899453101,-151.0,0.00014795,2]
[408572498,1773899453114,-199.680299,0.00014795,2]
[408572499,1773899453123,-151.0,0.00014795,2]
[408572500,1773899453133,-199.680299,0.00014795,2]
[408572501,1773899453142,-166.293149,0.00014795,2]
[408572502,1773899453151,-166.293149,0.00014795,2]
[408572503,1773899453160,-166.293149,0.00014795,2]
[408572504,1773899453169,-166.293149,0.00014795,2]
[408572505,1773899453179,-151.0,0.00014795,2]
[408572506,1773899453188,-151.0,0.00014795,2]
[408572507,1773899453198,-168.185178,0.00014795,2]
[408572508,1773899453207,-499.918076,0.00014795,2]
[408572509,1773899453217,-499.918076,0.00014795,2]
[408572510,1773899453226,-499.918076,0.00014795,2]
[408572511,1773899453235,-499.918076,0.00014795,2]
[408572512,1773899453244,-151.0,0.00014795,2]
[408572513,1773899453253,-151.0,0.00014795,2]
[408572514,1773899453262,-171.721533,0.00014795,2]
[408572515,1773899453271,-825.383714,0.00014795,2]
[408572516,1773899453281,-825.383714,0.00014795,2]
[408572517,1773899453290,-2420.00275,0.00014795,2]
[408572518,1773899453299,-2420.00275,0.00014795,2]
[408572519,1773899453309,-151.0,0.00014795,2]
[408572520,1773899453318,-2420.00275,0.00014795,2]
[408572521,1773899453329,-233.477044,0.00014795,2]
[408572522,1773899453338,-2420.00275,0.00014795,2]
[408572523,1773899453348,-233.477044,0.00014795,2]
[408572524,1773899453358,-673.760442,0.00014795,2]
[408572525,1773899453367,-233.477044,0.00014795,2]
[408572526,1773899453376,-673.760442,0.00014795,2]
[408572527,1773899453385,-233.477044,0.00014795,2]
[408572528,1773899453395,-673.760442,0.00014795,2]
[408572529,1773899453404,-673.760442,0.00014795,2]
[408572530,1773899453414,-151.0,0.00014795,2]
[408572531,1773899453423,-151.0,0.00014795,2]
[408572532,1773899453433,-151.0,0.00014795,2]
[408572533,1773899453443,-151.0,0.00014795,2]
[408572534,1773899453453,-151.0,0.00014795,2]
[408572535,1773899453462,-151.0,0.00014795,2]
[408572536,1773899453471,-151.0,0.00014795,2]
[408572537,1773899453481,-151.0,0.00014795,2]
[408572538,1773899453493,-151.0,0.00014795,2]
[408572539,1773899453503,-151.0,0.00014795,2]
[408572540,1773899453512,-151.0,0.00014795,2]
[408572541,1773899453523,-151.0,0.00014795,2]
[408572542,1773899453532,-151.0,0.00014795,2]
[408572543,1773899453542,-151.0,0.00014795,2]
[408572544,1773899453555,-151.0,0.00014795,2]
[408572545,1773899453564,-151.0,0.00014795,2]
[408572546,1773899453574,-248.98918,0.00014795,2]
[408572547,1773899453584,-151.0,0.00014795,2]
[408572548,1773899453595,-151.0,0.00014795,2]
[408572549,1773899453604,-151.0,0.00014795,2]
[408572550,1773899453614,-151.0,0.00014795,2]
[408572551,1773899453625,-273.968338,0.00014795,2]
[408572552,1773899453635,-273.968338,0.00014795,2]
[408572553,1773899453645,-273.968338,0.00014795,2]
[408572554,1773899453654,-202.884032,0.00014795,2]
[408572555,1773899453665,-273.968338,0.00014795,2]